bitfinex-derivatives/quotes_ETHF0:USTF0_20240826
["timestamp","ask_amount","ask_price","bid_price","bid_amount"]
[1724653584927,0.00547665,2741.2,2741.0,4.56813759]
[1724653585131,0.00547665,2741.2,2741.1,0.36467]
[1724653585721,0.00547665,2741.2,2741.0,3.6127]
[1724653585923,0.37013665,2741.2,2741.0,3.2078]
[1724653586230,0.37013665,2741.2,2741.0,4.5178]
[1724653586824,0.37013665,2741.2,2741.1,1.31]
[1724653588232,3.65347665,2741.2,2741.1,1.31]
[1724653588427,4.01813665,2741.2,2741.1,1.31]
[1724653588823,3.65347665,2741.2,2741.1,1.31]
[1724653590431,0.36468,2741.0,2740.9,0.00378942]
[1724653590937,4.01268,2741.0,2740.9,0.00378942]
[1724653591234,4.42338,2741.0,2740.9,0.00378942]
[1724653594133,0.36471,2740.8,2740.7,0.00547665]
[1724653594324,0.36471,2740.8,2740.4,0.1]
[1724653594325,0.36474,2740.6,2740.4,0.1]
[1724653594531,0.36474,2740.6,2740.4,1.41]
[1724653594839,0.4043,2740.5,2740.4,1.41]
[1724653595135,0.4043,2740.5,2740.4,1.41472927]
[1724653596032,0.4043,2740.5,2740.4,0.10472927]
[1724653597131,0.36471,2740.8,2740.4,0.10472927]
[1724653597528,0.36471,2740.8,2740.4,0.46948927]
[1724653598839,0.8532,2740.9,2740.4,0.10472927]
[1724653599032,0.36475,2740.5,2740.4,0.10472927]
[1724653599439,4.01355,2740.5,2740.4,0.10472927]
[1724653600234,3.6488,2740.5,2740.4,0.10472927]
[1724653600629,4.0556,2740.5,2740.4,0.10472927]
[1724653601344,4.42035,2740.5,2740.4,0.10472927]
[1724653601535,0.36478,2740.3,2740.2,0.00547665]
[1724653601935,3.6496,2740.3,2740.2,0.00547665]
[1724653602145,0.4068,2740.5,2740.2,0.00547665]
[1724653602530,0.4068,2740.5,2740.3,0.36478]
[1724653602737,0.4068,2740.5,2740.2,0.01000206]
[1724653602936,0.4068,2740.5,2740.2,0.37478206]
[1724653603135,0.4068,2740.5,2740.3,0.36477]
[1724653603641,0.4068,2740.5,2740.2,0.37478206]
[1724653604835,0.8513,2740.5,2740.2,0.37478206]
[1724653605742,1.21605,2740.5,2740.2,0.01000206]
[1724653606943,0.36476,2740.4,2740.2,0.01000206]
[1724653608247,0.36478,2740.3,2740.2,0.01000206]
[1724653608737,4.01438,2740.3,2740.2,0.01000206]
[1724653617945,5.32438,2740.3,2740.2,0.01000206]
[1724653620952,0.36481,2740.1,2739.9,0.4158]
[1724653621248,0.8625,2740.0,2739.9,0.4158]
[1724653622045,0.36484,2739.8,2739.7,0.00547665]
[1724653623052,0.36484,2739.8,2739.7,0.0097989]
[1724653623447,0.36484,2739.8,2737.9,3.2078]
[1724653623448,4.56255,2739.7,2737.9,3.2078]
[1724653623748,14.12247757,2739.8,2738.3,1.7137]
[1724653623749,1.31,2738.8,2738.3,1.7137]
[1724653623938,1.67496,2739.0,2738.6,1.31]
[1724653624136,0.91225,2739.4,2738.7,0.4154]
[1724653624137,0.426,2739.3,2738.7,0.4154]
[1724653624340,0.426,2739.3,2738.7,0.42087665]
[1724653624341,9.5970362,2739.3,2738.7,0.42087665]
[1724653624551,0.36495,2739.0,2738.7,0.42367915]
[1724653625039,9.16555955,2739.2,2738.7,0.42367915]
[1724653625441,0.36496,2739.0,2738.7,0.42367915]
[1724653626948,0.36496,2738.9,2738.7,0.42367915]
[1724653627550,0.36496,2739.0,2738.7,0.42367915]
[1724653628545,0.4333,2739.1,2738.7,0.42367915]
[1724653628747,0.36493,2739.2,2738.7,0.42367915]
[1724653628948,0.36493,2739.2,2738.7,0.78866915]
[1724653630056,0.36493,2739.2,2738.7,0.42367915]
[1724653631058,0.36494,2739.1,2738.7,0.42367915]
[1724653631454,0.00547665,2739.3,2738.8,6.8112]
[1724653631759,0.00547665,2739.3,2739.2,6.73272]
[1724653631949,0.00547665,2739.3,2739.2,10.38312]
[1724653632151,0.4376,2739.9,2739.2,15.0182]
[1724653632352,0.4376,2739.9,2739.5,0.36487]
[1724653632558,0.0039628,2740.0,2739.6,0.79637]
[1724653632946,0.0039628,2740.0,2739.6,0.4315]
[1724653633152,0.0039628,2740.0,2739.7,3.6496]
[1724653633755,0.0039628,2740.0,2739.9,0.36483]
[1724653633954,0.0039628,2740.0,2739.8,0.36484]
[1724653634145,0.0039628,2740.0,2739.9,3.6496]
[1724653636753,0.0039628,2740.0,2739.9,4.01443]
[1724653637651,0.0039628,2740.0,2739.9,3.6496]
[1724653638350,0.0039628,2740.0,2739.8,0.36484]
[1724653638561,0.0039628,2740.0,2739.8,4.01444]
[1724653639955,0.0039628,2740.0,2739.9,0.36483]
[1724653640353,0.0039628,2740.0,2739.9,4.01443]
[1724653642053,0.0039628,2740.0,2739.9,3.6496]
[1724653642252,0.0039628,2740.0,2739.9,4.01443]
[1724653642652,0.0039628,2740.0,2739.9,3.6496]
[1724653643951,0.0039628,2740.0,2739.9,4.01443]
[1724653644757,0.0039628,2740.0,2739.9,3.6496]
[1724653645857,0.0039628,2740.0,2739.7,0.36485]
[1724653646258,0.4394628,2740.0,2739.7,0.36485]
[1724653646455,0.36484,2739.9,2739.6,0.4315]
[1724653647463,0.4394628,2740.0,2739.6,0.4315]
[1724653647668,0.4394628,2740.0,2739.2,3.2078]
[1724653647970,0.91208,2739.9,2739.2,0.78752]
[1724653648364,0.36488,2739.6,2739.2,0.78752]
[1724653648553,0.8543,2739.5,2739.2,0.78752]
[1724653649371,1.21918,2739.5,2739.2,0.4226]
[1724653649667,1.21918,2739.5,2739.2,0.78752]
[1724653649668,0.8543,2739.5,2739.2,0.78752]
[1724653649870,1.21918,2739.5,2739.2,0.78752]
[1724653650067,0.8543,2739.5,2739.2,0.78752]
[1724653650259,0.8543,2739.5,2739.3,0.36491]
[1724653650569,0.8543,2739.5,2739.4,0.3649]
[1724653650771,0.4187,2739.5,2739.4,0.3649]
[1724653651064,0.4363,2739.9,2739.2,3.5826]
[1724653651258,0.4363,2739.9,2739.5,0.36488]
[1724653651463,0.4363,2739.9,2739.7,0.36485]
[1724653653874,0.4363,2739.9,2739.6,0.36486]
[1724653656563,0.80113,2739.9,2739.6,0.36486]
[1724653656756,0.4363,2739.9,2739.6,0.36486]
[1724653656963,0.80113,2739.9,2739.6,0.36486]
[1724653658769,0.80113,2739.9,2739.5,0.36488]
[1724653658969,0.80113,2739.9,2739.6,0.36487]
[1724653659370,0.36484,2739.8,2739.5,0.36488]
[1724653659572,0.36484,2739.8,2739.4,3.57269]
[1724653659967,0.36488,2739.6,2739.2,0.78752]
[1724653660365,0.4308,2739.5,2739.2,0.78752]
[1724653660762,0.79568,2739.5,2739.2,0.78752]
[1724653660973,0.36492,2739.3,2739.0,0.36494]
[1724653661170,0.7894,2739.4,2739.1,0.36494]
[1724653661877,0.7894,2739.4,2739.0,0.4182]
[1724653662077,0.4245,2739.4,2739.0,0.4182]
[1724653662375,0.7894,2739.4,2739.1,0.36494]
[1724653662567,0.4245,2739.4,2739.2,0.36492]
[1724653662966,0.7894,2739.4,2739.2,0.36492]
[1724653663170,0.4245,2739.4,2739.2,0.36492]
[1724653664277,0.7894,2739.4,2739.2,0.36492]
[1724653664670,0.4245,2739.4,2739.2,0.36492]
[1724653666474,0.4245,2739.4,2739.0,0.4182]
[1724653666682,0.4245,2739.4,2739.3,0.36491]
[1724653667066,0.4308,2739.5,2739.4,0.3649]
[1724653668078,4.0812,2739.5,2739.4,0.3649]
[1724653669278,0.4308,2739.5,2739.3,0.3649]
[1724653669676,0.4308,2739.5,2739.4,0.3649]
[1724653669883,0.4308,2739.5,2739.3,0.3649]
[1724653671181,0.4308,2739.5,2739.2,0.36492]
[1724653671878,0.79569,2739.5,2739.2,0.36492]
[1724653674484,0.79569,2739.5,2739.0,0.4182]
[1724653674485,0.4308,2739.5,2739.0,0.4182]
[1724653674787,0.36493,2739.2,2739.0,0.4182]
[1724653675881,0.36493,2739.2,2739.0,0.78315]
[1724653677384,0.36491,2739.3,2739.1,0.36493]
[1724653680978,1.34304,2739.5,2739.0,0.78315]
[1724653681176,0.76943,2739.2,2739.0,0.78315]
[1724653681386,0.4083,2739.1,2739.0,0.78315]
[1724653681588,0.77324,2739.1,2739.0,0.78315]
[1724653682084,0.4083,2739.1,2739.0,0.78315]
[1724653683884,0.4083,2739.1,2739.0,2.09315]
[1724653684685,0.4045,2739.2,2739.1,0.36494]
[1724653684994,0.4064,2739.3,2739.2,0.36492]
[1724653685792,0.77131,2739.3,2739.2,1.67492]
[1724653686491,0.77131,2739.3,2739.2,1.31]
[1724653686688,0.36494,2739.1,2738.7,0.00827915]
[1724653686879,0.77206,2739.0,2738.9,1.31]
[1724653687683,0.4071,2739.0,2738.9,1.67496]
[1724653687885,1.7164,2739.3,2738.9,1.31]
[1724653688085,2.1542,2739.3,2739.1,0.36493]
[1724653688291,0.36492,2739.2,2739.0,1.67494]
[1724653688493,0.36493,2739.2,2739.0,1.67494]
[1724653688691,0.36496,2739.0,2738.7,0.78335915]
[1724653688890,0.8442,2739.3,2738.7,0.41837915]
[1724653688891,1.31,2738.9,2738.7,0.41837915]
[1724653689192,1.31,2738.9,2738.7,0.78335915]
[1724653689193,0.8644,2738.8,2738.7,0.78335915]
[1724653689588,1.22938,2738.8,2738.7,0.41837915]
[1724653689789,0.8644,2738.8,2738.7,0.41837915]
[1724653689990,0.8644,2738.8,2738.7,0.78336915]
[1724653690986,1.22938,2738.8,2738.7,0.00827915]
[1724653691597,2.53938,2738.8,2738.7,0.00827915]
[1724653691992,1.22938,2738.8,2738.7,0.00827915]
[1724653692994,0.8644,2738.8,2738.7,0.37326915]
[1724653693196,0.36494,2739.1,2738.8,0.36496]
[1724653693385,0.80685,2739.0,2738.8,0.81186]
[1724653693588,0.36496,2738.9,2738.8,0.4469]
[1724653693787,0.36496,2738.9,2738.7,0.37325915]
[1724653694689,0.4419,2739.0,2738.7,0.00827915]
[1724653694893,0.36498,2738.8,2738.7,0.00827915]
[1724653698190,0.4419,2739.0,2738.7,0.00827915]
[1724653698191,0.36497,2738.9,2738.7,0.37326915]
[1724653698398,0.36497,2738.9,2738.8,0.4043]
[1724653698795,0.4419,2739.0,2738.9,0.36496]
[1724653699208,3.57273,2739.2,2739.0,0.36494]
[1724653700106,3.57273,2739.2,2738.9,0.36496]
[1724653700395,3.57273,2739.2,2739.0,0.36495]
[1724653700706,3.57273,2739.2,2738.8,0.4043]
[1724653700900,3.57273,2739.2,2738.9,0.36495]
[1724653701203,3.2078,2739.2,2739.0,0.36494]
[1724653701399,3.57273,2739.2,2738.9,0.36496]
[1724653701794,0.36494,2739.1,2738.9,0.36496]
[1724653701994,0.36494,2739.1,2738.8,0.76927]
[1724653703996,0.36495,2739.0,2738.8,0.76927]
[1724653705102,0.36495,2739.0,2738.8,0.4043]
[1724653705307,0.4122,2738.9,2738.8,0.4043]
[1724653705814,0.4122,2738.9,2738.8,0.76928]
[1724653707510,0.4122,2738.9,2738.8,0.4043]
[1724653708213,0.77716,2738.9,2738.8,0.4043]
[1724653708906,0.4122,2738.9,2738.8,0.4043]
[1724653710715,0.77716,2738.9,2738.8,0.4043]
[1724653712215,0.4122,2738.9,2738.8,1.7143]
[1724653713518,0.77716,2738.9,2738.8,1.7143]
[1724653716309,0.77716,2738.9,2738.8,1.31]
[1724653716822,0.36498,2738.8,2738.7,1.31827915]
[1724653717018,0.76998,2738.8,2738.7,1.31827915]
[1724653721521,0.405,2738.8,2738.7,1.68326915]
[1724653724631,0.77717,2738.9,2738.7,1.68326915]
[1724653724829,0.4122,2738.9,2738.8,1.67498]
[1724653725031,0.77716,2738.9,2738.8,1.67498]
[1724653725524,0.77716,2738.9,2738.8,1.31]
[1724653726928,0.4122,2738.9,2738.8,1.67498]
[1724653727128,0.4122,2738.9,2738.8,1.31]
[1724653727329,0.77716,2738.9,2738.8,1.31]
[1724653727828,0.4122,2738.9,2738.8,1.67498]
[1724653728631,0.4122,2738.9,2738.8,1.31]
[1724653729027,0.77717,2738.9,2738.7,0.37325915]
[1724653729223,0.4122,2738.9,2738.8,1.31]
[1724653729727,0.77716,2738.9,2738.8,1.31]
[1724653734425,0.77716,2738.9,2738.7,0.37325915]
[1724653734636,0.77716,2738.9,2738.7,1.68325915]
[1724653736738,0.4122,2738.9,2738.7,1.68325915]
[1724653737339,0.77717,2738.9,2738.7,1.68325915]
[1724653738638,0.4122,2738.9,2738.7,1.68325915]
[1724653739137,0.77717,2738.9,2738.7,1.68325915]
[1724653742041,0.77717,2738.9,2738.7,0.00827915]
[1724653742042,0.36498,2738.8,2738.7,0.00827915]
[1724653742238,6.23863,2738.8,2738.7,0.00827915]
[1724653742441,0.36504,2738.3,2738.2,4.1642428]
[1724653742631,1.31,2738.3,2738.0,0.4071]
[1724653742829,0.36507,2738.1,2738.0,0.4071]
[1724653743451,0.36507,2738.1,2738.0,0.40986832]
[1724653744246,1.67507,2738.1,2738.0,0.00276832]
[1724653744446,5.32707,2738.1,2738.0,0.00276832]
[1724653745739,1.67507,2738.1,2738.0,0.00276832]
[1724653745939,5.32707,2738.1,2738.0,0.00276832]
[1724653746146,4.01707,2738.1,2738.0,0.00276832]
[1724653746353,0.8603,2738.2,2738.0,1.31276832]
[1724653746650,0.8603,2738.2,2738.1,0.77657]
[1724653746849,0.8603,2738.2,2738.1,0.4115]
[1724653747051,4.5123,2738.2,2738.1,0.4115]
[1724653747251,4.5123,2738.2,2738.1,0.77657]
[1724653747550,0.00547665,2738.3,2738.2,0.36506]
[1724653747942,0.00547665,2738.3,2738.1,2.08656]
[1724653748347,0.00547665,2738.3,2738.2,0.36506]
[1724653749343,0.00547665,2738.3,2738.2,3.57286]
[1724653749551,0.00547665,2738.3,2738.2,7.22486]
[1724653758047,1.68051665,2738.3,2738.2,3.2078]
[1724653758247,1.68051665,2738.3,2738.1,0.4115]
[1724653759766,0.37051665,2738.3,2738.1,0.4115]
[1724653760256,0.36506,2738.2,2738.1,0.4115]
[1724653763860,2.10252665,2738.3,2738.1,0.77657]
[1724653764158,2.10252665,2738.3,2738.1,0.4115]
[1724653764159,0.36506,2738.2,2738.1,0.4115]
[1724653764762,2.10252665,2738.3,2738.1,0.77657]
[1724653765160,0.36506,2738.2,2738.1,0.4115]
[1724653766557,0.36507,2738.1,2738.0,0.00276832]
[1724653767552,1.31,2738.2,2738.0,0.00276832]
[1724653767757,1.67506,2738.2,2738.0,0.36784832]
[1724653769065,0.79252665,2738.3,2738.1,0.36507]
[1724653770270,1.67506,2738.2,2738.0,0.36784832]
[1724653770566,0.36506,2738.2,2738.0,0.36784832]
[1724653773771,2.10252665,2738.3,2738.0,0.36784832]
[1724653773960,2.10252665,2738.3,2738.0,0.36783832]
[1724653775964,1.67506,2738.2,2738.0,0.36783832]
[1724653777263,1.31,2738.2,2738.0,0.36783832]
[1724653777766,1.67506,2738.2,2738.0,0.36783832]
[1724653780969,1.31,2738.2,2738.1,0.36507]
[1724653781172,2.10252665,2738.3,2738.1,0.36507]
[1724653784977,0.36506,2738.2,2738.1,0.36507]
[1724653785174,1.73747665,2738.3,2738.1,0.36507]
[1724653785380,2.10252665,2738.3,2738.1,0.36507]
[1724653792083,0.36506,2738.2,2738.0,0.00276832]
[1724653792275,0.36506,2738.2,2738.0,0.36783832]
[1724653792475,0.36506,2738.2,2738.1,0.36507]
[1724653792676,2.10252665,2738.3,2738.1,0.36507]
[1724653793279,0.42747665,2738.3,2738.2,0.36506]
[1724653794474,0.79251665,2738.3,2738.1,0.36506]
[1724653798783,0.00547665,2738.3,2738.2,8.53486]
[1724653799085,0.36498,2738.8,2738.6,0.365]
[1724653799284,0.36498,2738.8,2738.2,15.40414701]
[1724653799285,0.78847,2738.9,2738.8,1.31]
[1724653799985,6.40932,2739.2,2738.8,1.31]
[1724653799986,0.00547665,2739.1,2738.8,1.31]
[1724653800183,0.00547665,2739.1,2738.9,1.67496]
[1724653800486,0.37041665,2739.1,2738.9,1.67496]
[1724653800683,0.37041665,2739.1,2738.9,1.31]
[1724653800887,0.37041665,2739.1,2738.9,1.67496]
[1724653801480,0.00547665,2739.1,2738.9,1.67496]
[1724653801682,0.00547665,2739.1,2739.0,3.57275]
[1724653801883,4.55188,2739.6,2739.0,6.859]
[1724653802085,0.36488,2739.5,2739.4,1.31]
[1724653802285,1.31,2739.7,2739.3,1.31]
[1724653802491,0.36487,2739.6,2739.3,1.31]
[1724653802888,1.31,2739.7,2739.3,1.31]
[1724653802889,0.36489,2739.5,2739.3,1.31]
[1724653803290,0.36488,2739.6,2739.3,1.31]
[1724653803990,0.36487,2739.6,2739.3,1.31]
[1724653805189,1.67488,2739.5,2739.2,1.31547665]
[1724653805585,1.67491,2739.3,2739.2,0.00547665]
[1724653806088,5.32531,2739.3,2739.2,0.00547665]
[1724653807292,4.9604,2739.3,2739.2,0.00547665]
[1724653807488,4.9604,2739.3,2739.2,0.42477665]
[1724653807791,0.00547665,2739.7,2739.2,1.73477665]
[1724653808095,0.45027665,2739.7,2739.6,0.36487]
[1724653808296,0.45027665,2739.7,2739.5,1.67488]
[1724653808483,0.45027665,2739.7,2739.6,0.4325]
[1724653809091,0.81513665,2739.7,2739.6,0.4325]
[1724653809396,2.12513665,2739.7,2739.6,0.4325]
[1724653809587,5.77553665,2739.7,2739.3,0.3649]
[1724653809784,5.77553665,2739.7,2739.2,0.00547665]
[1724653809785,1.31,2739.6,2739.4,0.36489]
[1724653809992,1.31,2739.6,2739.3,0.3649]
[1724653809993,1.67487,2739.6,2739.3,0.3649]
[1724653810590,1.31,2739.6,2739.4,0.36489]
[1724653810790,1.76027665,2739.7,2739.5,0.36488]
[1724653810990,0.00547665,2739.7,2739.6,0.36487]
[1724653811298,0.00547665,2739.7,2739.6,1.67487]
[1724653816704,0.00547665,2739.7,2739.6,1.31]
[1724653816896,0.00547665,2739.7,2739.6,1.67487]
[1724653817098,0.00547665,2739.7,2739.6,1.31]
[1724653817409,0.00547665,2739.7,2739.6,1.67487]
[1724653818308,0.00547665,2739.7,2739.6,1.31]
[1724653819096,0.00547665,2739.7,2739.6,1.67487]
[1724653822613,0.0039628,2740.0,2739.9,0.36483]
[1724653822904,0.4218628,2740.0,2739.9,0.36483]
[1724653823298,0.4218628,2740.0,2739.9,0.79283]
[1724653823496,0.4218628,2740.0,2739.4,3.2078]
[1724653823696,0.4218628,2740.0,2739.7,1.31]
[1724653823697,0.36483,2739.9,2739.7,1.31]
[1724653824299,0.36483,2739.9,2739.7,1.67485]
[1724653824806,0.7866928,2740.0,2739.7,1.67485]
[1724653825002,0.7866928,2740.0,2739.8,1.31]
[1724653825003,0.4218628,2740.0,2739.8,1.31]
[1724653825205,0.4218628,2740.0,2739.9,0.4058]
[1724653825507,0.4218628,2740.0,2739.9,0.77063]
[1724653825508,0.0039628,2740.0,2739.9,0.77063]
[1724653825703,0.0039628,2740.0,2739.9,4.42023]
[1724653827409,0.0039628,2740.0,2739.9,0.77063]
[1724653827610,0.0039628,2740.0,2739.9,0.4058]
[1724653827806,0.0039628,2740.0,2739.9,0.77063]
[1724653828204,0.0039628,2740.0,2739.9,0.4058]
[1724653828601,0.0039628,2740.0,2739.9,0.77063]
[1724653832103,0.0039628,2740.0,2739.9,0.4058]
[1724653833411,0.0039628,2740.0,2739.9,0.77063]
[1724653834200,0.0039628,2740.0,2739.9,1.18773]
[1724653835012,0.0039628,2740.0,2739.9,4.83733]
[1724653835212,3.2078,2740.7,2739.9,4.4725]
[1724653835402,4.0396,2740.7,2740.6,1.31]
[1724653835607,3.2078,2740.7,2740.6,1.31]
[1724653835808,3.2078,2740.7,2740.6,1.67474]
[1724653836212,3.2078,2740.7,2740.6,1.67766929]
[1724653836213,3.21121329,2740.7,2740.6,1.67766929]
[1724653836805,3.21121329,2740.7,2740.6,0.00292929]
[1724653837008,3.57593329,2740.7,2740.6,1.31292929]
[1724653837311,7.22473329,2740.7,2740.6,0.00292929]
[1724653838505,7.22473329,2740.7,2740.6,1.31292929]
[1724653838506,3.21121329,2740.7,2740.6,1.31292929]
[1724653838701,3.57593329,2740.7,2740.6,1.31292929]
[1724653840615,3.21121329,2740.7,2740.6,1.31292929]
[1724653841002,3.21121329,2740.7,2740.6,1.67766929]
[1724653842707,3.21121329,2740.7,2740.6,1.31292929]
[1724653843311,3.21121329,2740.7,2740.6,1.67766929]
[1724653844126,3.21121329,2740.7,2740.6,0.36766929]
[1724653844719,0.00341329,2740.7,2740.6,0.36766929]
[1724653845418,0.00341329,2740.7,2740.6,4.01646929]
[1724653846220,0.00341329,2740.7,2740.6,0.36766929]
[1724653846920,0.00341329,2740.7,2740.6,0.00292929]
[1724653847812,0.00341329,2740.7,2740.6,0.36766929]
[1724653860034,0.4192,2741.1,2741.0,0.36468]
[1724653861029,0.42281047,2741.1,2740.9,0.80379]
[1724653861427,0.78748047,2741.1,2740.9,0.80379]
[1724653863028,0.3647,2740.9,2740.8,0.00547665]
[1724653863421,4.0135,2740.9,2740.8,0.00547665]
[1724653864233,4.0135,2740.9,2740.8,1.31547665]
[1724653867432,0.3647,2740.9,2740.8,1.31547665]
[1724653868632,0.42281047,2741.1,2740.8,1.31547665]
[1724653868936,0.3647,2740.9,2740.8,0.00547665]
[1724653869134,0.3647,2740.9,2740.8,1.31547665]
[1724653869831,0.36469,2741.0,2740.8,1.31547665]
[1724653870032,0.36469,2741.0,2740.9,1.31]
[1724653870433,4.01269,2741.0,2740.9,1.31]
[1724653870824,0.78749047,2741.1,2740.9,1.67469]
[1724653871033,0.78749047,2741.1,2740.9,2.11169]
[1724653871436,0.00361047,2741.1,2741.0,0.36468]
[1724653875442,0.36828047,2741.1,2740.9,2.11169]
[1724653875739,0.00361047,2741.1,2740.9,2.11169]
[1724653878045,0.36828047,2741.1,2740.9,2.11169]
[1724653878546,0.36468,2741.0,2740.9,1.747]
[1724653878746,0.00361047,2741.1,2740.8,0.00547665]
[1724653878747,4.96161047,2741.1,2740.8,0.00547665]
[1724653878944,0.8074,2740.9,2740.8,0.00547665]
[1724653879160,0.8074,2740.9,2740.8,1.31547665]
[1724653880236,0.4427,2740.9,2740.8,1.31547665]
[1724653881644,0.4427,2740.9,2740.8,1.68018665]
[1724653881844,0.36469,2741.0,2740.8,1.68018665]
[1724653882253,0.36469,2741.0,2740.9,0.4158]
[1724653882438,0.79529047,2741.1,2740.9,0.7805]
[1724653882644,0.79529047,2741.1,2741.0,1.31]
[1724653885955,0.79528047,2741.1,2741.0,1.31]
[1724653886954,0.36468,2741.0,2740.9,1.31]
[1724653887254,0.79529047,2741.1,2740.9,1.6747]
[1724653887452,0.79529047,2741.1,2741.0,1.31]
[1724653887453,0.43061047,2741.1,2741.0,1.31]
[1724653888458,0.00361047,2741.1,2741.0,1.67468]
[1724653889961,0.00361047,2741.1,2741.0,0.36468]
[1724653892458,0.00361047,2741.1,2741.0,7.22048]
[1724653892756,0.4218,2741.5,2741.4,0.36463]
[1724653893258,0.4218,2741.5,2741.3,0.36464]
[1724653893459,0.4218,2741.5,2741.4,0.4459]
[1724653893660,0.42503595,2741.5,2741.4,0.4459]
[1724653895956,0.42503595,2741.5,2741.4,0.81053]
[1724653896260,0.00323595,2741.5,2741.4,4.45853]
[1724653897864,0.00323595,2741.5,2741.4,0.81053]
[1724653901264,0.36465,2741.3,2741.0,3.2078]
[1724653901463,3.65123595,2741.5,2741.0,3.2078]
[1724653901464,0.4163,2741.2,2741.0,3.2078]
[1724653901666,0.3647,2740.9,2740.8,0.00547665]
[1724653902258,0.4163,2741.2,2740.8,0.00547665]
[1724653902457,0.4163,2741.2,2740.8,0.37017665]
[1724653902671,0.4163,2741.2,2740.9,0.4432]
[1724653903169,0.36468,2741.1,2740.9,0.4432]
[1724653903475,0.36468,2741.1,2740.8,0.00547665]
[1724653904374,0.36468,2741.1,2740.8,0.37018665]
[1724653904675,0.36468,2741.1,2740.8,0.00547665]
[1724653905167,0.36468,2741.0,2740.8,0.00547665]
[1724653905573,0.3647,2740.9,2740.8,0.00547665]
[1724653912076,0.3647,2740.9,2740.8,0.45577665]
[1724653912268,0.36469,2741.0,2740.8,0.45577665]
[1724653912776,0.36469,2741.0,2740.8,0.82048665]
[1724653913579,0.36469,2741.0,2740.8,0.45577665]
[1724653913870,0.447,2741.1,2740.8,0.45577665]
[1724653915176,0.3647,2740.9,2740.8,0.45577665]
[1724653916071,0.3647,2740.9,2740.8,0.00547665]
[1724653916272,9.92525,2740.9,2740.8,0.00547665]
[1724653916777,13.13305,2740.9,2740.8,0.00547665]
[1724653917582,3.6488,2740.8,2740.0,0.36481]
[1724653917778,12.89056413,2740.9,2740.0,0.36481]
[1724653917779,0.36479,2740.3,2740.0,0.36481]
[1724653918076,0.8393,2740.2,2740.0,0.36481]
[1724653918284,1.20409,2740.2,2740.0,0.36481]
[1724653918585,0.8393,2740.2,2740.0,0.36481]
[1724653918881,0.36478,2740.3,2740.0,0.36791612]
[1724653919072,0.37024665,2740.4,2740.0,0.36791612]
[1724653919374,0.4094,2740.3,2740.1,0.3648]
[1724653919683,0.8242,2740.3,2740.1,0.3648]
[1724653920378,0.8242,2740.3,2740.2,0.4129]
[1724653922068,0.00547665,2740.4,2740.2,0.4129]
[1724653922378,0.00547665,2740.4,2740.3,3.51478]
[1724653922574,0.00547665,2740.4,2740.3,7.16438]
[1724653925482,3.2078,2740.9,2740.3,11.7996]
[1724653925682,0.36466,2741.2,2740.7,3.15]
[1724653925977,0.8807,2741.3,2740.7,3.15]
[1724653925978,1.24535,2741.3,2741.0,0.36468]
[1724653927471,1.24535,2741.3,2740.9,0.36469]
[1724653927674,1.24536,2741.3,2740.9,0.36469]
[1724653928093,0.36466,2741.2,2740.9,0.36469]
[1724653928284,0.36466,2741.2,2740.8,1.2115]
[1724653928681,0.36469,2741.0,2740.8,0.4133]
[1724653929387,0.8807,2741.3,2740.8,0.77801]
[1724653929587,0.8807,2741.3,2740.8,0.4133]
[1724653929790,0.36468,2741.1,2740.8,0.4133]
[1724653931292,0.36468,2741.1,2740.8,0.77801]
[1724653931589,0.8807,2741.3,2740.9,0.3647]
[1724653931590,0.36466,2741.2,2740.9,0.3647]
[1724653931894,0.00323595,2741.5,2741.1,0.36466]
[1724653932080,0.00323595,2741.5,2741.2,0.4421]
[1724653932383,0.00323595,2741.5,2741.2,0.80676]
[1724653932585,0.00323595,2741.5,2741.3,0.4288]
[1724653932788,0.36785595,2741.5,2741.3,0.4288]
[1724653933891,0.00323595,2741.5,2741.3,0.4288]
[1724653934188,0.36785595,2741.5,2741.3,0.4288]
[1724653934390,0.36463,2741.4,2741.3,0.4288]
[1724653934787,0.36785595,2741.5,2741.3,0.4288]
[1724653935690,0.00323595,2741.5,2741.4,0.36463]
[1724653936085,0.00323595,2741.5,2741.4,4.01263]
[1724653936688,0.00323595,2741.5,2741.4,3.648]
[1724653936891,0.00323595,2741.5,2741.4,4.01263]
[1724653937582,0.00323595,2741.5,2741.4,3.648]
[1724653938390,0.00323595,2741.5,2741.3,0.79344]
[1724653938989,0.00323595,2741.5,2741.4,0.36463]
[1724653939390,0.00323595,2741.5,2741.3,0.79344]
[1724653939793,0.78755595,2741.5,2741.3,0.4288]
[1724653940000,0.78755595,2741.5,2741.2,0.37012665]
[1724653943004,0.36464,2741.4,2741.2,0.00547665]
[1724653944497,0.36464,2741.4,2741.2,0.37012665]
[1724653944803,0.78755595,2741.5,2741.2,0.37012665]
[1724653945905,0.78755595,2741.5,2741.3,0.36464]
[1724653946099,0.42293595,2741.5,2741.3,0.36464]
[1724653946404,0.78755595,2741.5,2741.3,0.4223]
[1724653946606,0.78755595,2741.5,2741.3,0.78694]
[1724653946904,0.42293595,2741.5,2741.3,0.78694]
[1724653947092,0.78755595,2741.5,2741.3,0.78694]
[1724653948095,0.42293595,2741.5,2741.3,0.4223]
[1724653948296,0.78755595,2741.5,2741.3,0.4223]
[1724653948499,0.36463,2741.4,2741.3,0.4223]
[1724653949205,0.36463,2741.4,2741.2,0.00547665]
[1724653949504,0.4327,2741.3,2741.2,0.00547665]
[1724653950109,0.79734,2741.3,2741.2,0.00547665]
[1724653950489,0.79734,2741.3,2741.2,0.37013665]
[1724653950490,0.4327,2741.3,2741.2,0.37013665]
[1724653950696,0.4327,2741.3,2741.2,0.00547665]
[1724653951794,0.4327,2741.3,2741.2,0.37013665]
[1724653956803,0.78755595,2741.5,2741.3,0.36464]
[1724653956998,0.00323595,2741.5,2741.4,0.4502]